Cogmind - Beta 13 @@@ ROGUE MODE // 2024.04.24 @ 23:59:31 Player: obieonecnolly Result: Destroyed by S-10 Pest with Light Assault Rifle Performance ------------- Evolutions (0) 0 Regions Visited (1) 200 Robots Destroyed (15) 75 Value Destroyed (291) 291 Prototype IDs (0) 0 Alien Tech Used (0) 0 Bonus (0) 0 TOTAL SCORE: 566 Bonus ------- None Cogmind --------- Core Integrity 0/250 Matter 282/300 Energy 83/100 System Corruption 2% Temperature Cool (26) Movement Core (100) Ox1 Location -10/Materials Parts ------- > --- POWER (1) -------- (None) > --- PROPULSION (2) --- (None) > --- UTILITY (2) ------ Small Storage Unit Signal Interpreter > --- WEAPON (2) ------- Light Assault Rifle > --- INVENTORY (8) ---- Light Ion Engine Peak State ------------ > --- POWER ------------ Ion Engine > --- PROPULSION ------- Hover Unit Hover Unit > --- UTILITY ---------- Small Storage Unit Signal Interpreter > --- WEAPON ----------- Medium Laser Light Assault Rifle > --- INVENTORY -------- Light Ion Engine Light Treads Light Treads Small Laser [Rating: 7] Favorites ----------- Power Light Ion Engine Engine Light Ion Engine Propulsion Light Treads Treads Light Treads Wheel Compact Wheel Hover Unit Hover Unit Utility Small Storage Unit Storage Small Storage Unit Processor Signal Interpreter Weapon Hammer Energy Gun Medium Laser Ballistic Gun Light Assault Rifle Special Weapon Mining Laser Impact Weapon Hammer Special Melee Weapon Datajack Build | -11 -10 ------- Run | Yrd Mat Slots Evolved . | . . Power . | . . Propulsion . | . . Utility . | . . Weapon . | . . Parts Attached 20 | 5 15 Power 3 | . 3 Engine 3 | . 3 Core . | . . Reactor . | . . Propulsion 6 | 2 4 Treads 2 | . 2 Leg . | . . Wheel 2 | 2 . Hover 2 | . 2 Flight . | . . Utility 2 | 1 1 Device . | . . Storage 1 | 1 . Processor 1 | . 1 Hackware . | . . Protection . | . . Artifact . | . . Weapon 9 | 2 7 Energy Gun 3 | 1 2 Energy Cannon . | . . Ballistic Gun 2 | 1 1 Ballistic Cannon . | . . Launcher . | . . Special Weapon 1 | . 1 Impact Weapon 1 | . 1 Slashing Weapon . | . . Piercing Weapon . | . . Special Melee Weapon 2 | . 2 Unidentified Prototypes . | . . Parts Lost 10 | . 10 Power 2 | . 2 Propulsion 4 | . 4 Utility . | . . Weapon 4 | . 4 Highest Loss Streak 3 | . 3 To Critical Strikes . | . . Average Slot Usage (%) 80 | . 80 Engine 7 | . 7 Treads 10 | . 10 Wheel 1 | . 1 Hover 9 | . 9 Storage 14 | . 14 Processor 13 | . 13 Energy Gun 7 | . 7 Ballistic Gun 3 | . 3 Special Weapon 1 | . 1 Impact Weapon 10 | . 10 Special Melee Weapon 1 | . 1 Naked Turns . | . . Heaviest Build 14 | 8 14 Greatest Support 40 | 26 40 Greatest Overweight (x) 1 | . 1 Average Overweight (x) . | . . Largest Inventory Capacity 8 | 8 8 Average Capacity 7 | 6 8 Most Carried 7 | 5 7 Average Carried 4 | 2 4 Final Capacity 8 | 8 8 Final Carried 5 | 5 1 Class Distribution -------------------- 100% | Mutant Dominant Class ---------------- Mutant | -10/Materials Resources | -11 -10 ----------- Run | Yrd Mat Matter Collected 388 | 234 154 Remotely . | . . Salvage Created 464 | . 464 Parts 16 | . 16 Haulers Intercepted 1 | . 1 Recyclers Shooed . | . . Parts Field Recycled . | . . Retrieved Matter . | . . Parts Self-Destructed . | . . Prevented . | . . Kills | -11 -10 ------- Run | Yrd Mat Combat Hostiles Destroyed 11 | . 11 Melee 4 | . 4 Guns 4 | . 4 Classes Destroyed 6 | . 6 Worker 1 | . 1 Builder 1 | . 1 Hauler 1 | . 1 Watcher 1 | . 1 Swarmer 5 | . 5 Grunt 6 | . 6 Best Kill Streak 3 | . 3 Combat Bots Only 3 | . 3 Max Kills in Single Turn 2 | . 2 Gunslinging 1 | . 1 Exploded . | . . Melee 1 | . 1 Uniques/NPCs Destroyed . | . . Combat | -11 -10 -------- Run | Yrd Mat Hostile Shots Fired 151 | . 151 Missed 38 | . 38 Damage Taken 1038 | . 1038 Core 255 | . 255 Absorbed by Shields . | . . Core Remaining (%) 100 | 100 . Volleys Fired 26 | . 26 Largest 2 | . 2 Hottest 100 | . 100 Shots Fired 44 | . 44 Gun 42 | . 42 Cannon . | . . Launcher . | . . Special 2 | . 2 Kinetic 18 | . 18 Thermal 26 | . 26 Explosive . | . . Electromagnetic . | . . Robot Hit Streak 11 | . 11 Robot Miss Streak 3 | . 3 Penetration Max . | . . Secondary Targets 3 | . 3 Max Gunslinging Chain 1 | . 1 Shots Hit Robots 58 | . 58 Core Hits 16 | . 16 Critical Kills 1 | . 1 Critical Parts Destroyed 3 | . 3 Critical Strikes 5 | . 5 Burn 1 | . 1 Smash 4 | . 4 Melee Attacks 38 | . 38 Impact 33 | . 33 Slashing . | . . Piercing . | . . Sneak Attacks 8 | . 8 Combat Hostiles . | . . Follow-up Attacks . | . . Damage Inflicted 960 | . 960 Guns 335 | . 335 Cannons . | . . Explosions . | . . Melee 625 | . 625 Ramming . | . . Kinetic 120 | . 120 Thermal 215 | . 215 Explosive . | . . Electromagnetic . | . . Impact 625 | . 625 Slashing . | . . Piercing . | . . Highest Corruption 2 | . 2 Average Corruption 1 | . 1 Corruption Purged . | . . Corruption Blocked . | . . Effects 6 | . 6 Message Errors 2 | . 2 Matter Fused 1 | . 1 Heat Flow Errors 1 | . 1 Parts Rejected 1 | . 1 Alerts 1 | . 1 Overload Shots . | . . Overflow Damage 243 | . 243 Projectiles . | . . Explosions . | . . Melee 243 | . 243 Knockbacks 1 | . 1 Impact 1 | . 1 Kinetic . | . . Secondary . | . . Self-Inflicted Damage . | . . Shots . | . . Rammed . | . . Targets Rammed . | . . Kicked . | . . Crushed . | . . Highest Temperature 217 | . 217 Average Temperature 71 | . 71 Received Heat Transfer 258 | . 258 Siege Activations . | . . Robots Corrupted . | . . Combat Hostiles . | . . Parts Fried 8 | . 8 Impact Corruptions 11 | . 11 Robots Melted 1 | . 1 Combat Hostiles 1 | . 1 Parts Melted 1 | . 1 Heat Transferred 656 | . 656 Parts Sabotaged . | . . Parts Stolen . | . . Parts Stripped . | . . Power Chain Reactions . | . . Alert | -11 -10 ------- Run | Yrd Mat Peak Influence 190 | . 190 Initial . | . . Average 88 | . 100 Maximum Alert Level . | . . Low Security (%) 100 | 100 100 Level 1 . | . . Level 2 . | . . Level 3 . | . . Level 4 . | . . Level 5 . | . . High Security . | . . Max Security . | . . Squads Dispatched 2 | . 2 Investigation 1 | . 1 Extermination . | . . Reinforcement 1 | . 1 Assault . | . . Garrison . | . . Intercept . | . . Searches Triggered . | . . Construction Impeded . | . . Haulers Reinforced . | . . Active Scanning Responses . | . . Cargo Convoy Interrupts . | . . Stealth | -11 -10 --------- Run | Yrd Mat Distress Signals 1 | . 1 Communications Jammed . | . . Distress Signals . | . . Times Spotted 18 | . 18 Peak Tracking Total 5 | . 5 Tactical Retreats . | . . Traps | -11 -10 ------- Run | Yrd Mat Traps Triggered 2 | . 2 Indirectly . | . . Trap Hack Attempts 6 | . 6 Triggered . | . . Disarmed . | . . Reprogrammed . | . . Reused . | . . Traps Extracted . | . . Installed . | . . Triggered . | . . Machines | -11 -10 ---------- Run | Yrd Mat Machines Disabled . | . . Max in Single Turn . | . . Machines Repaired . | . . Machines Dismantled . | . . Machines Sabotaged . | . . Overloaded Fab Kills . | . . Hacking | -11 -10 --------- Run | Yrd Mat Machines Accessed 1 | . 1 Terminals . | . . Fabricators . | . . Repair Stations . | . . Recycling Units 1 | . 1 Scanalyzers . | . . Garrison Access . | . . Total Hacks 7 | . 7 Successful 2 | . 2 Failed 5 | . 5 Catastrophic 1 | . 1 Database Lockouts . | . . Manual . | . . Terminals . | . . Fabricators . | . . Repair Stations . | . . Recycling Units 7 | . 7 Scanalyzers . | . . Garrison Access . | . . Terminal Hacks . | . . Fabricator Hacks . | . . Repair Station Hacks . | . . Recycling Unit Hacks 2 | . 2 Retrieve Matter 1 | . 1 Retrieve Components 1 | . 1 Scanalyzer . | . . Garrison Access Hacks . | . . Unauthorized Hacks . | . . Terminals . | . . Fabricators . | . . Repair Stations . | . . Recycling Units . | . . Scanalyzers . | . . Garrison Access . | . . Data Cores Recovered . | . . Used . | . . Hacking Detections 1 | . 1 Full Trace Events 1 | . 1 Feedback Events . | . . Feedback Blocked . | . . Robot Schematics Acquired . | . . Robots Built . | . . Authchips . | . . Time . | . . Total Robot Build Rating . | . . Part Schematics Acquired . | . . Parts Built . | . . Authchips . | . . Time . | . . Total Part Build Rating . | . . Parts Repaired . | . . Time . | . . Parts Recycled . | . . Recycled Matter . | . . Retrieved Matter . | . . Retrieved Components 1 | . 1 Parts Scanalyzed . | . . Part Schematics Acquired . | . . Parts Damaged . | . . Bothacking | -11 -10 ------------ Run | Yrd Mat Used RIF Installer . | . . Robots Hacked 3 | . 3 Non-combat 3 | . 3 Combat . | . . Robot Hacks Applied 3 | . 3 parse_system 1 | . 1 no_distress 1 | . 1 find_recycling 1 | . 1 Relay Couplers Released . | . . Fabnet Peak Effective % . | . . Robots Rewired . | . . Allies Hacked . | . . Hacks Repelled . | . . Allies | -11 -10 -------- Run | Yrd Mat Total Allies . | . . Largest Group . | . . Highest-Rated Group . | . . Highest-Rated Ally . | . . Total Orders . | . . Ally Attacks . | . . Total Damage . | . . Kills . | . . Allies Corrupted . | . . Allies Melted . | . . Intel | -11 -10 ------- Run | Yrd Mat Robot Analysis Total . | . . Derelict Logs Recovered . | . . Drone Launches . | . . Drone Recoveries . | . . Exploration | -11 -10 ------------- Run | Yrd Mat Turns Passed 532 | 60 472 Spaces Moved 318 | 55 263 Core 4 | 4 . Treads 105 | . 105 Legs . | . . Wheels 86 | 51 35 Hover 123 | . 123 Flight . | . . Fastest Speed 50 | 50 56 Average Speed 99 | 87 102 Slowest Speed 160 | 100 160 Overloaded Moves . | . . Propulsion Burnouts . | . . Robots Hopped . | . . Cave-ins Triggered . | . . Exploration Rate (%) 17 | 3 32 Regions Visited 1 Branch Regions . Pre-discovered Areas . | . . Known Exits Taken . | . . Unknown Exits Taken 1 | 1 . Scrap Searched . | . . Spaces Dug . | . . Terrain Destroyed 2 | . 2 Melee . | . . Projectile 2 | . 2 AOE . | . . Terrain Rammed . | . . Walls Destroyed . | . . Machines Disabled . | . . Actions | -11 -10 --------- Run | Yrd Mat Total 426 | 64 362 Wait 6 | . 6 Move 317 | 54 263 Hop . | . . Pick Up 6 | 5 1 Fast Attach 11 | 5 6 Attach 8 | . 8 Detach 5 | . 5 Swap 1 | . 1 Drop 2 | . 2 Fire 26 | . 26 Melee 38 | . 38 Ram . | . . Kick . | . . Crush . | . . Escape Stasis . | . . Rewire . | . . Trap 6 | . 6 Miscellaneous . | . . Route ------- -11/Scrapyard -10/Materials (discovered 1 exit: *Min) History --------- Turn | Location | Event 11 | -11/Scrapyard | Discovered new exit (range 15) 61 | -11/Scrapyard | Entered Materials 112 | -10/Materials | Discovered new exit (range 14) 149 | -10/Materials | Identified exit to Mines 285 | -10/Materials | Lost 3 parts (1p2n) 300 | -10/Materials | Build established: Mutant 371 | -10/Materials | Core integrity fell below 50% 409 | -10/Materials | Lost 3 parts (1p1n1w) 516 | -10/Materials | Core integrity fell below 20% 533 | -10/Materials | Destroyed by S-10 Pest with Light Assault Rifle Last Messages --------------- 00486_ Acquired 10 matter. 00502_ Mining Laser destroyed. 00503_ U-05 Engineer builds a Wall. 00504_ Destroyed Heat Sink. 00504_ G-34 Mercenary system corrupted by crushing effect. 00505_ G-34 Mercenary misfires. 00507_ U-05 Engineer builds a Wall. 00509_ System corrupted: Hammer rejected. 00519_ Lgt. Treads destroyed. 00519_ G-34 Mercenary IFF system glitched. 00521_ G-34 Mercenary heat damages Sml. Laser. 00521_ G-34 Mercenary overheating. 00526_ G-34 Mercenary heat damages Aluminum Leg. 00526_ G-34 Mercenary critical meltdown. 00526_ Ion Engine melted. 00526_ Switching to secondary target: S-10 Pest. 00529_ S-10 Pest destroyed. 00529_ Switching to secondary target: S-10 Pest. 00529_ S-10 Pest destroyed. 00532_ Sml. Laser destroyed. Map ----- +----------------------------------------------------+ | ?????????????????????????????????????????????????? | | ?????????????????????????????????????????????????? | | ?????????????????????????????????????????????????? | | ?????????????????????????????????????????????????? | | ?????????????????????????????????????????????????? | | ?????????????????????????????????????????#######?? | | ????????????????????????????????????????## #?? | | ???????????????? ??????????????????????? #?? | | ??????????????? ??????????#????????????? ??? | | ????????????####+##???????? #???????????? ??? | | ????????????? #???????? #????????????? ??? | | ???????????? ^ #???????? #?????????????# #??? | | ????????????"" #??????"" #?????????????# #??? | | ??? """"" ! #?# ???"" #?????????????# #??? | | ? """"" #?? ? "" #?????????????# #??? | | ? ? ### """ #?????????????# #??? | | ? ?? "" #?????????????# #### | | ? """"" #??? "" #?????????????# | | ??? """"" #???? " #???????#####?# | | ????# ^ """"" #????? ######### #?# """ | | ???## #######+## ## #### """ | | ???# ^ ^ % "" | | ???# ^ > | | ???# r* % | | ???# ^ #######g## ##+####+###### | | ???# ! #??# @%[# " "!" # ?? ????? | | ???# "Y" #### %s#""|"!""# ? ""????? | | ???# """ % ## =######### # ""????? | | ???+ ## """ #???????# # ""????? | | ???# % % % ## """ #???????# # ????? | | ???# ###+######+##### """ #???????# " # ??????? | | ???# ?# ## % #??# #???????# T # ??????? | | ???# ??# ## #??# """ #???????#! " # ??????? | | ???#???#""" ## #??# """ #???????# ? # ??????? | | ???????#""" %##! #??# ??? #???????###?##???????? | | ???????#""" ## #??????? #????????????????????? | | ???????# ## * #??????? #????????????????????? | | ???????######### #???????##????????????????????? | | ???????????????#####?????????????????????????????? | | ?????????????????????????????????????????????????? | | ?????????????????????????????????????????????????? | | ?????????????????????????????????????????????????? | | ?????????????????????????????????????????????????? | | ?????????????????????????????????????????????????? | | ?????????????????????????????????????????????????? | | ?????????????????????????????????????????????????? | | ?????????????????????????????????????????????????? | | ?????????????????????????????????????????????????? | | ?????????????????????????????????????????????????? | | ?????????????????????????????????????????????????? | +----------------------------------------------------+ Best States ------------- Heat Dissipation 25 Energy Generation 10 Energy Capacity 250 Matter Stores 300 Matter Capacity 300 Sight Range 16 Terrain Scan Density 10 Evasion (%) 53 Recoil Reduction 2 Item Schematics ----------------- None Robot Schematics ------------------ None Fabricated ------------ Nothing Alien Tech Used ----------------- None Achievements -------------- None Challenges ------------ None Game ------ Seed ForceFrostRay Manual? 0 Play Time 00:09:56 Cumulative 6.5 hours Start 2024.04.24 @ 23:50:56 End 2024.04.24 @ 23:59:31 Sessions 1 Manual Loads 0 Difficulty Rogue Special Mode None Game No. 11 Rogue 11 Adventurer 0 Explorer 0 Win Type - Total 0 Types 0/0/0/0/0/0/0/0/0 Lore% 5 Gallery% 11 Achievement% 10 Wizard Run 0 Options --------- Layout 0 ASCII 0 Keyboard 0 Movement Arrows Keybinds 0 Fullscreen 2 Font 18/SmallcapsGlow Map View 38x25 Zoom Use 100% Tactical HUD 1 Map Filters NONE Filters NONE Steam 1 RUN: 51c277a9-3834-4ad0-a54f-ea7211486b7d